bitfinex/quotes_ETHUSD_20220201
["timestamp","ask_amount","ask_price","bid_price","bid_amount"]
[1643735769681,1.51116127,2790.5,2789.4,1.68328]
[1643735769882,0.1792,2790.7,2789.4,1.68328]
[1643735769883,3.88131604,2790.4,2789.4,1.68328]
[1643735770071,4.70211604,2790.4,2789.4,1.68328]
[1643735770271,1.69036127,2790.3,2789.4,1.68328]
[1643735770502,1.0,2790.0,2788.8,0.13819997]
[1643735770709,1.69036127,2789.9,2788.8,0.13819997]
[1643735770908,5.1252155,2789.8,2788.8,0.13819997]
[1643735771108,1.69568726,2789.7,2788.8,0.13819997]
[1643735771307,0.33499957,2788.9,2788.8,0.13819997]
[1643735771509,0.1792,2789.5,2788.8,0.13819997]
[1643735771708,0.00532599,2789.7,2788.6,1.68328]
[1643735771709,1.51162531,2789.4,2788.6,1.68328]
[1643735771911,1.69082531,2789.3,2788.6,1.68328]
[1643735772108,1.51162531,2789.2,2788.6,1.68328]
[1643735772310,0.1792,2789.7,2788.4,0.5435332]
[1643735772510,1.51164068,2789.6,2788.4,0.5435332]
[1643735772713,0.37773951,2789.3,2788.8,0.33840156]
[1643735772910,0.1792,2789.5,2788.8,0.33840156]
[1643735773110,0.1792,2789.9,2788.8,0.33840156]
[1643735773310,1.51144842,2789.8,2788.6,1.68328]
[1643735773511,0.1792,2789.7,2788.6,1.68328]
[1643735773714,1.51144842,2789.6,2788.8,0.70200422]
[1643735773913,1.51144842,2789.6,2788.6,1.68328]
[1643735774265,1.69064842,2789.5,2788.6,1.68328]
[1643735774466,1.89643363,2789.4,2788.6,1.68328]
[1643735774671,1.69077811,2789.3,2788.6,1.68328]
[1643735774867,0.1792,2789.3,2788.6,1.68328]
[1643735775071,0.1792,2789.3,2788.9,0.84632136]
[1643735775368,0.1792,2789.3,2788.6,1.68328]
[1643735775369,0.38498521,2789.4,2788.7,1.0]
[1643735775768,0.38498521,2789.4,2788.6,1.68328]
[1643735775769,1.51157786,2789.3,2788.6,1.68328]
[1643735776372,1.51157786,2789.3,2788.8,0.80809648]
[1643735776574,1.51157786,2789.3,2789.0,0.35591742]
[1643735776772,1.51157786,2789.3,2788.8,0.80809648]
[1643735776773,0.1792,2789.9,2788.8,1.23809648]
[1643735776972,1.51149327,2789.8,2788.8,1.23809648]
[1643735777176,2.1792,2790.0,2788.8,0.80809648]
[1643735777177,1.69069327,2789.7,2788.8,0.80809648]
[1643735777371,1.51149327,2789.6,2788.8,0.80809648]
[1643735777770,1.51149327,2789.6,2788.6,1.68328]
[1643735777771,0.4044782,2789.0,2788.7,1.0]
[1643735778011,0.4044782,2789.0,2788.6,2.68328]
[1643735778216,2.1792,2789.9,2788.6,1.68328]
[1643735778419,1.51152388,2789.8,2788.7,0.99279021]
[1643735778625,0.1792,2789.7,2788.6,1.68328]
[1643735778823,1.51152388,2789.6,2788.6,1.68328]
[1643735779024,0.1792,2789.5,2788.6,1.68328]
[1643735779221,1.51152388,2789.4,2788.6,1.68328]
[1643735779420,0.1792,2789.3,2788.6,1.68328]
[1643735779622,1.51152388,2789.2,2788.6,1.68328]
[1643735779822,0.1792,2789.1,2788.6,1.68328]
[1643735780022,1.83772346,2789.0,2788.6,1.68328]
[1643735780220,0.32619958,2789.0,2788.6,1.68328]
[1643735781223,0.1792,2789.6,2788.6,1.68328]
[1643735781224,1.07594,2789.6,2788.6,1.68328]
[1643735781425,1.51171112,2789.5,2788.6,1.68328]
[1643735781627,0.1792,2789.4,2788.6,1.68328]
[1643735781871,1.51171112,2789.3,2788.6,1.68328]
[1643735782071,0.1792,2789.2,2788.6,1.68328]
[1643735782273,1.51171112,2789.1,2788.6,1.68328]
[1643735782474,0.37179804,2788.8,2788.6,1.68328]
[1643735782673,0.37179804,2788.8,2788.4,0.5435332]
[1643735783874,1.5118991,2788.7,2788.4,0.5435332]
[1643735784076,1.6910991,2788.7,2788.4,0.5435332]
[1643735784281,1.51195035,2788.6,2788.1,1.68328]
[1643735784675,1.51195035,2788.6,2787.9,0.51563473]
[1643735785075,0.1792,2788.7,2787.9,0.51563473]
[1643735785275,0.1792,2788.7,2787.9,0.13819997]
[1643735785918,0.1792,2788.7,2787.9,0.03819997]
[1643735786521,0.1792,2788.7,2788.1,0.39305847]
[1643735787025,1.2137,2789.3,2788.1,0.82305847]
[1643735787026,0.1792,2789.2,2788.1,0.82305847]
[1643735787222,1.51177271,2789.1,2788.1,1.82305847]
[1643735787422,0.1792,2789.0,2788.1,1.82305847]
[1643735787822,0.437767,2788.8,2788.1,1.82305847]
[1643735788024,0.437767,2788.8,2788.1,1.43]
[1643735788224,0.437767,2788.8,2787.9,0.03819997]
[1643735788426,4.08558991,2788.7,2787.9,0.03819997]
[1643735788621,0.1792,2788.7,2787.9,0.03819997]
[1643735789257,0.1792,2788.7,2788.0,0.77650253]
[1643735789562,0.1792,2788.7,2788.0,2.45978253]
[1643735789762,0.1792,2789.2,2788.0,2.45978253]
[1643735789963,1.51183999,2789.1,2788.0,2.45978253]
[1643735790163,0.1792,2789.0,2788.0,3.45978253]
[1643735790365,0.1792,2789.0,2788.1,1.0]
[1643735790566,0.54525288,2789.2,2788.0,2.45978253]
[1643735790766,1.51182606,2789.1,2788.0,3.45978253]
[1643735790965,0.1792,2789.0,2788.0,2.45978253]
[1643735791167,0.1792,2789.0,2788.1,1.0]
[1643735791366,0.1792,2789.1,2788.1,1.0]
[1643735791566,0.1792,2789.1,2788.0,3.45978253]
[1643735791767,0.1792,2789.1,2788.1,1.0]
[1643735792070,1.51190947,2789.0,2788.0,2.45978253]
[1643735792268,0.39134626,2788.3,2788.0,1.68328]
[1643735792569,2.34314446,2788.9,2787.9,0.03819997]
[1643735792766,1.51201022,2788.8,2787.9,0.03819997]
[1643735793017,0.1792,2788.7,2787.9,0.03819997]
[1643735793218,0.77911,2789.0,2787.9,0.03819997]
[1643735793219,0.1792,2788.9,2787.9,0.03819997]
[1643735793419,0.1792,2788.9,2788.1,0.74146108]
[1643735794022,0.36453191,2788.7,2788.2,0.33553185]
[1643735794620,0.36453191,2788.7,2787.9,0.03819997]
[1643735795020,0.1792,2789.2,2787.9,0.03819997]
[1643735795224,1.51194734,2789.1,2787.9,0.03819997]
[1643735795422,2.50632765,2789.0,2787.9,0.03819997]
[1643735795621,1.51194734,2788.9,2787.9,0.03819997]
[1643735795824,0.1792,2788.8,2787.9,0.03819997]
[1643735796025,0.44548588,2788.1,2787.9,0.03819997]
[1643735796227,0.1792,2788.9,2787.9,0.03819997]
[1643735796425,2.512008,2788.8,2787.8,0.143553]
[1643735796627,4.2183594,2788.7,2787.8,0.143553]
[1643735796880,1.512008,2788.6,2787.4,1.68328]
[1643735797076,2.53303244,2788.5,2787.4,2.36301782]
[1643735797277,1.512008,2788.4,2787.4,2.36301782]
[1643735797478,0.33499907,2787.8,2787.4,2.36301782]
[1643735797675,2.38818755,2788.7,2787.4,2.36301782]
[1643735797676,9.77838755,2788.7,2787.4,2.36301782]
[1643735797877,1.51212358,2788.6,2787.4,2.36301782]
[1643735798080,0.1792,2788.5,2787.4,2.36301782]
[1643735798279,2.28113392,2788.5,2787.4,2.36301782]
[1643735798480,2.28113392,2788.5,2787.4,0.67973782]
[1643735798481,0.1792,2788.5,2787.4,0.67973782]
[1643735798678,0.3623753,2788.1,2787.4,0.67973782]
[1643735799078,0.1792,2788.6,2787.4,0.67973782]
[1643735799277,1.51211484,2788.5,2787.4,0.67973782]
[1643735799476,0.1792,2788.4,2787.4,0.67973782]
[1643735799678,2.44114539,2788.4,2787.4,0.67973782]
[1643735799883,0.1792,2788.4,2787.3,2.13201939]
[1643735800077,1.5122438,2788.3,2787.3,1.68328]
[1643735800278,0.0067975,2788.1,2787.3,1.68328]
[1643735800509,0.18301475,2788.0,2787.3,1.826858]
[1643735800708,0.18301475,2788.0,2787.3,1.68328]
[1643735800911,0.18301475,2788.0,2786.9,1.72147997]
[1643735801111,0.1792,2788.0,2786.9,1.72147997]
[1643735801313,0.1792,2788.0,2786.9,2.72147997]
[1643735801514,0.1792,2788.0,2786.9,1.72147997]
[1643735801716,1.51240732,2787.9,2786.9,1.72147997]
[1643735801919,0.1792,2787.8,2786.9,1.72147997]
[1643735802315,0.1792,2788.0,2786.9,1.72147997]
[1643735802546,0.4190964,2787.7,2786.9,1.72147997]
[1643735803115,0.4190964,2787.7,2787.0,0.87488024]
[1643735803520,0.4190964,2787.7,2787.1,0.34281401]
[1643735804386,0.4190964,2787.7,2787.0,0.87488024]
[1643735804586,0.1792,2787.6,2786.9,1.72147997]
[1643735804786,0.1,2787.0,2786.9,1.67147997]
[1643735805193,0.1,2787.0,2786.9,2.05726751]
[1643735805593,0.1,2787.0,2786.9,1.63328]
[1643735805791,0.1,2787.0,2786.8,1.1155874]
[1643735805990,0.1,2787.0,2786.3,3.2172]
[1643735805991,0.49789832,2786.7,2786.3,3.2172]
[1643735806190,0.50187996,2786.7,2786.3,3.2172]
[1643735806591,0.50187996,2786.7,2786.6,2.75576698]
[1643735806795,0.49789832,2786.7,2786.5,0.91450541]
[1643735806997,0.49789832,2786.7,2786.2,0.5418796]
[1643735807892,0.49789832,2786.7,2786.5,0.79375035]
[1643735808515,0.49789832,2786.7,2786.2,0.5418796]
[1643735809314,0.0236464,2786.2,2785.9,0.54803874]
[1643735809518,0.0236464,2786.2,2786.0,1.02399641]
[1643735810619,0.0236464,2786.2,2786.1,1.63328]
[1643735811621,0.0236464,2786.2,2786.1,1.58328]
[1643735813065,0.0236464,2786.2,2785.7,1.58328]
[1643735814068,0.0236464,2786.2,2785.9,0.37481863]
[1643735814265,0.0236464,2786.2,2785.7,1.58328]
[1643735814466,0.1794,2786.1,2785.7,1.58328]
[1643735815269,0.1794,2786.1,2785.9,0.42015305]
[1643735815715,0.0236464,2786.2,2785.9,2.00343305]
[1643735815915,0.0236464,2786.2,2785.9,0.42015305]
[1643735816715,0.0236464,2786.2,2786.1,1.58328]
[1643735816917,4.64e-05,2786.2,2786.1,8.71328]
[1643735817115,0.49789832,2786.7,2786.2,4.05]
[1643735817313,0.49789832,2786.7,2786.3,0.43]
[1643735818116,0.49789832,2786.7,2786.1,2.42497851]
[1643735818315,0.49789832,2786.7,2786.2,0.517]
[1643735818816,0.49789832,2786.7,2786.2,1.59486538]
[1643735819015,0.49789832,2786.7,2786.2,0.60314136]
[1643735819275,0.49789832,2786.7,2786.3,1.58328]
[1643735819478,0.49789832,2786.7,2786.6,4.74084739]
[1643735819678,0.49789832,2786.7,2786.6,5.25784739]
[1643735821482,0.49789832,2786.7,2786.6,6.84112739]
[1643735823119,0.49789832,2786.7,2786.6,2.89112739]
[1643735823321,0.49789832,2786.7,2786.6,2.10028]
[1643735823515,0.49789832,2786.7,2786.6,0.517]
[1643735824122,0.49789832,2786.7,2786.6,0.660634]
[1643735824621,0.49789832,2786.7,2786.6,3.717]
[1643735825022,0.1,2787.0,2786.6,3.717]
[1643735825023,0.1,2787.0,2786.7,5.4]
[1643735825235,0.1794,2787.8,2786.8,8.52805177]
[1643735825424,2.26869971,2788.1,2786.9,8.463]
[1643735825425,0.1792,2788.0,2786.9,8.463]
[1643735825626,0.89395292,2788.5,2787.3,6.47152063]
[1643735825627,0.1792,2788.4,2787.3,6.47152063]
[1643735825828,1.51216954,2788.3,2787.4,0.517]
[1643735826025,0.1792,2788.5,2787.6,0.00554398]
[1643735826226,1.51211322,2788.4,2787.7,0.517]
[1643735826900,1.51211322,2788.4,2787.8,2.37066452]
[1643735827101,0.1792,2789.0,2787.9,0.517]
[1643735827304,1.5118156,2788.9,2788.0,2.60926829]
[1643735827504,1.5118156,2788.9,2788.2,0.00383912]
[1643735827803,0.67421961,2789.5,2788.3,0.517]
[1643735827804,0.1792,2789.4,2788.3,0.517]
[1643735828003,1.51178837,2789.3,2788.3,0.517]
[1643735828205,0.1792,2789.2,2788.7,0.94504916]
[1643735828409,1.51178837,2789.1,2788.8,0.517]
[1643735828803,0.42911,2789.8,2788.9,4.92858752]
[1643735828804,1.51178837,2789.0,2788.9,4.92858752]
[1643735829006,0.1792,2789.7,2789.0,5.53819997]
[1643735829206,0.1792,2789.7,2789.1,3.63865101]
[1643735829404,0.001,2790.0,2789.6,0.69274296]
[1643735829405,0.1792,2789.9,2789.6,0.69274296]
[1643735829605,0.1792,2789.9,2789.7,0.4427639]
[1643735830627,0.1792,2789.9,2789.6,0.517]
[1643735830821,0.1792,2789.9,2789.2,0.517]
[1643735831424,0.1792,2789.9,2789.4,0.71264854]
[1643735831821,0.85341961,2789.9,2789.4,0.517]
[1643735832226,0.17911,2789.8,2789.4,0.517]
[1643735832422,0.1792,2789.7,2789.0,0.55519997]
[1643735832622,0.67521961,2790.0,2789.6,0.34391581]
[1643735832623,0.1792,2789.9,2789.6,0.34391581]
[1643735832824,0.1792,2789.9,2789.0,0.55519997]
[1643735833027,0.85341961,2789.9,2789.0,0.55519997]
[1643735833224,0.1792,2789.9,2789.0,0.55519997]
[1643735833628,0.1792,2789.9,2789.2,0.76264102]
[1643735833828,0.1792,2789.9,2789.4,0.3595127]
[1643735834467,0.1792,2789.9,2789.0,0.55519997]
[1643735834664,0.85341961,2789.9,2789.0,0.55519997]
[1643735834864,1.85341961,2789.9,2789.0,0.55519997]
[1643735835066,1.85341961,2789.9,2788.6,1.58328]
[1643735835067,0.67421961,2789.7,2788.6,0.517]
[1643735835266,0.1792,2789.6,2788.6,0.517]
[1643735835461,1.03252961,2789.6,2788.6,0.517]
[1643735835663,0.35831,2789.6,2788.6,0.517]
[1643735835863,0.35831,2789.6,2788.2,3.37624]
[1643735835864,0.40687117,2789.3,2788.2,3.37624]
[1643735836065,0.36390598,2789.2,2788.2,0.517]
[1643735836267,0.36390598,2789.2,2787.6,1.16422275]
[1643735836268,1.0,2789.1,2787.6,1.16422275]
[1643735836462,1.0,2789.1,2787.4,2.13025469]
[1643735836463,0.1792,2789.0,2787.4,2.13025469]
[1643735836664,0.1792,2789.0,2787.3,3.9566]
[1643735836665,0.00775859,2788.9,2787.3,3.9566]
[1643735836864,0.35831,2788.8,2788.1,1.20865696]
[1643735837064,0.35831,2788.8,2788.1,0.77597885]
[1643735837265,0.65831,2788.8,2788.1,0.77597885]
[1643735838122,0.1792,2788.8,2788.4,0.40864473]
[1643735838319,0.01244016,2789.1,2788.4,0.40864473]
[1643735838320,0.17911,2788.9,2788.4,0.40864473]
[1643735838523,0.1792,2788.8,2788.4,0.40864473]
[1643735838723,0.1792,2789.0,2788.1,0.77597885]
[1643735839120,0.1792,2789.0,2787.5,3.57405996]
[1643735839321,0.1792,2789.0,2787.5,1.517]
[1643735839722,0.1792,2789.0,2788.1,0.4175902]
[1643735839723,0.35831,2789.0,2788.1,0.4175902]
[1643735840122,0.65831,2789.0,2788.1,0.4175902]
[1643735840324,0.35831,2789.0,2788.1,0.4175902]
[1643735840523,0.4792,2789.0,2788.1,0.4175902]
[1643735840725,0.4792,2789.0,2788.3,0.72383202]
[1643735840923,0.1792,2789.0,2788.3,0.72383202]
[1643735841328,0.1792,2789.0,2788.1,0.4175902]
[1643735842170,0.1792,2789.0,2788.2,0.517]
[1643735842372,0.1792,2789.0,2788.2,4.1581006]
[1643735842572,0.85341961,2789.5,2788.2,4.15331933]
[1643735842772,0.85341961,2789.5,2788.3,1.0]
[1643735842971,0.85341961,2789.5,2788.8,0.76541656]
[1643735842972,0.1792,2789.5,2788.8,0.76541656]
[1643735843172,0.1792,2789.5,2788.9,0.517]
[1643735843576,0.40007191,2789.6,2789.1,0.32343666]
[1643735843774,0.1792,2789.5,2789.1,0.32343666]
[1643735844075,0.0792,2789.5,2789.1,0.32343666]
[1643735844273,0.0792,2789.5,2789.3,0.75512253]
[1643735844274,0.1792,2789.5,2789.3,0.75512253]
[1643735844473,0.1792,2789.9,2789.3,0.75512253]
[1643735845174,0.1792,2789.9,2789.3,0.517]
[1643735845175,0.32506008,2789.7,2789.3,0.517]
[1643735845373,0.1792,2789.6,2789.3,0.517]
[1643735846009,0.1792,2789.8,2789.3,0.517]
[1643735846813,0.1792,2789.9,2789.3,0.517]
[1643735848211,0.44143713,2789.4,2789.3,0.517]
[1643735848411,0.44143713,2789.4,2788.8,1.58328]
[1643735848611,0.44143713,2789.4,2788.9,0.517]
[1643735849471,1.69093132,2789.3,2788.4,1.3208809]
[1643735849674,0.1792,2789.3,2788.4,0.97825823]
[1643735849870,1.51177846,2789.2,2788.4,0.97825823]
[1643735850074,1.51177846,2789.2,2788.4,0.1792]
[1643735850075,0.08956857,2789.1,2788.4,0.1792]
[1643735850276,1.51190884,2789.0,2788.0,1.67291]
[1643735850478,0.1792,2788.9,2787.9,1.6639]
[1643735850676,0.3634284,2788.5,2788.0,0.43124168]
[1643735851280,0.3634284,2788.5,2788.0,1.19391095]
[1643735851480,0.1792,2788.9,2788.0,3.26477709]
[1643735851677,0.1792,2789.2,2788.0,3.26477709]
[1643735851877,0.1792,2789.2,2788.0,1.19391095]
[1643735851878,1.51183625,2789.1,2788.0,1.19391095]
[1643735852075,0.1792,2789.0,2788.0,1.19391095]
[1643735852475,0.40333925,2788.7,2788.0,1.19391095]
[1643735852675,0.35831,2789.0,2788.0,1.19391095]
[1643735853310,0.35831,2789.0,2788.0,3.24667877]
[1643735853913,0.44120592,2788.7,2788.0,1.19391095]
[1643735854116,0.44120592,2788.7,2788.0,0.76266927]
[1643735854314,0.44120592,2788.7,2788.0,1.27966927]
[1643735856119,0.44120592,2788.7,2788.0,1.28367802]
[1643735856523,0.44120592,2788.7,2788.0,1.27966927]
[1643735861417,0.44120592,2788.7,2788.0,1.28350257]
[1643735861616,1.51191166,2788.6,2788.0,0.517]
[1643735861819,1.69111166,2788.6,2788.0,0.517]
[1643735862120,0.1792,2788.6,2788.0,0.517]
[1643735862524,1.51193981,2788.5,2788.0,0.517]
[1643735867680,1.51193981,2788.5,2788.1,2.088373]
[1643735867882,0.1792,2789.1,2788.2,0.5237823]
[1643735868131,1.51168004,2789.0,2788.4,1.58328]
[1643735868331,1.51168004,2788.9,2788.5,0.517]
[1643735868530,0.1792,2789.4,2788.5,0.517]
[1643735868731,0.67421961,2789.6,2788.5,1.4149123]
[1643735868732,1.51161129,2789.3,2788.5,1.4149123]
[1643735868930,0.36437857,2788.7,2788.5,1.4149123]
[1643735869131,0.36437857,2788.7,2788.5,2.41354]
[1643735869331,0.85341961,2789.4,2788.5,2.41354]
[1643735869530,2.18584379,2789.3,2788.5,1.41354]
[1643735869732,1.69082418,2789.2,2788.5,1.41354]
[1643735869930,1.51162418,2789.1,2788.5,1.41354]
[1643735870135,1.51162418,2789.2,2788.5,2.26187721]
[1643735870332,1.51162418,2789.1,2788.5,3.26187721]
[1643735870533,1.95286358,2789.0,2788.5,3.26187721]
[1643735870734,1.51162418,2788.9,2788.5,3.26187721]
[1643735871332,1.51162418,2788.9,2788.6,0.35767662]
[1643735871533,1.51162418,2788.9,2788.7,0.517]
[1643735875610,1.034,2788.6,2788.2,0.71706574]
[1643735875810,1.51162418,2788.5,2788.2,0.517]
[1643735876010,0.1792,2788.9,2788.2,0.517]
[1643735876210,1.51174018,2788.8,2788.2,0.517]
[1643735876610,1.51174018,2788.8,2788.5,0.73102296]
[1643735876815,1.51174018,2788.8,2788.5,1.62758296]
[1643735877014,0.4412394,2789.0,2788.6,0.517]
[1643735877015,1.51174018,2788.7,2788.6,0.517]
[1643735877215,1.51174018,2788.9,2788.6,0.517]
[1643735878617,1.34092938,2789.9,2788.8,8.28328]
[1643735878818,0.1792,2789.8,2789.5,0.0122533]
[1643735879016,0.001,2790.0,2789.5,0.0122533]
[1643735879263,0.001,2790.0,2789.6,0.43]
[1643735879465,0.001,2790.0,2789.6,2.01328]
[1643735879664,0.001,2790.0,2789.9,7.09946305]
[1643735879864,0.67742464,2791.0,2789.9,7.09946305]
[1643735880066,0.1791,2791.2,2790.1,0.89581]
[1643735880265,5.68026048,2791.3,2790.2,0.45230411]
[1643735880266,5.00283584,2791.3,2790.2,0.45230411]
[1643735880469,5.18193584,2791.3,2790.2,0.45230411]
[1643735880673,0.85652464,2791.3,2790.2,0.43942426]
[1643735880872,0.85652464,2791.3,2790.4,2.30725756]
[1643735881069,0.85652464,2791.3,2790.5,0.43]
[1643735881070,0.67742464,2791.2,2790.5,0.43]
[1643735881270,0.1791,2791.3,2790.5,0.43]
[1643735881670,0.1791,2791.3,2790.5,1.43]
[1643735881870,0.34589208,2790.8,2790.5,3.54469752]
[1643735882070,0.34589208,2790.8,2790.7,1.58328]
[1643735882271,0.1791,2791.5,2790.9,0.75269456]
[1643735883111,0.1791,2791.5,2791.0,0.89583]
[1643735883312,0.1791,2791.6,2791.0,0.89583]
[1643735883512,0.39695006,2791.2,2791.0,0.89583]
[1643735884112,0.39695006,2791.2,2790.9,0.75269456]
[1643735884319,0.39695006,2791.2,2790.6,1.79165]
[1643735884516,0.39695006,2791.2,2790.4,0.1791]
[1643735885417,0.39695006,2791.2,2790.7,0.76414564]
[1643735887066,0.39695006,2791.2,2790.7,2.85581897]
[1643735887466,0.39695006,2791.2,2790.7,4.40927719]
[1643735887866,0.1791,2791.8,2790.8,0.36829009]
[1643735888070,0.1791,2792.0,2790.9,2.10844841]
[1643735888370,0.1791,2792.0,2791.3,0.67154028]
[1643735888772,0.1791,2792.0,2791.1,2.04869358]
[1643735888968,0.41651735,2791.4,2791.0,0.89579]
[1643735889568,0.1791,2792.0,2791.1,2.04458598]
[1643735889771,0.1791,2792.0,2791.2,1.84605982]
[1643735890613,0.37756016,2791.4,2791.2,1.84605982]
[1643735891216,0.37756016,2791.4,2791.1,1.58328]
[1643735891416,0.37756016,2791.4,2790.8,1.97051]
[1643735891613,0.37756016,2791.4,2790.8,3.99485748]
[1643735892317,0.37756016,2791.4,2790.9,0.67622093]
[1643735892519,0.37756016,2791.4,2790.8,1.97051]
[1643735892720,0.37756016,2791.4,2790.8,0.1791]
[1643735893421,0.37756016,2791.4,2790.8,2.19096308]
[1643735893621,0.37756016,2791.4,2790.8,3.08673308]
[1643735894468,0.37756016,2791.4,2790.8,0.1791]
[1643735895975,0.62756016,2791.4,2790.8,0.1791]
[1643735896176,0.1791,2791.3,2790.3,2.75488]
[1643735896373,0.1791,2791.3,2790.3,1.58328]
[1643735896573,0.1791,2791.3,2790.3,6.98328]
[1643735896774,0.1791,2791.3,2790.4,0.89591]
[1643735896975,0.1791,2791.3,2790.3,1.58328]
[1643735898327,0.1791,2791.3,2790.4,2.02340752]
[1643735898735,0.1791,2791.3,2790.4,3.02340752]
[1643735898937,0.1791,2791.3,2790.4,0.89591]
[1643735899332,0.1791,2791.3,2790.4,3.00978755]
[1643735899534,0.37552277,2790.8,2790.5,1.0]
[1643735899935,0.62552277,2790.8,2790.4,2.06077015]
[1643735900135,0.62552277,2790.8,2790.3,1.58328]
[1643735900735,0.62552277,2790.8,2790.3,2.58328]
[1643735900935,0.62552277,2790.8,2790.3,1.58328]
[1643735901134,0.52552277,2790.8,2790.3,2.58328]
[1643735901440,0.52552277,2790.8,2790.3,1.58328]
[1643735902771,0.82552277,2790.8,2790.2,0.1]
[1643735902971,0.82552277,2790.8,2789.8,1.76238]
[1643735902972,0.18362242,2790.7,2789.8,1.76238]
[1643735903371,0.18362242,2790.7,2789.8,2.76238]
[1643735903771,0.1791,2790.7,2790.1,0.84062047]
[1643735903974,1.12552277,2790.8,2790.1,0.84062047]
[1643735904172,0.1791,2790.7,2789.9,1.0]
[1643735904372,0.1791,2790.7,2789.8,2.76238]
[1643735904975,0.1791,2790.7,2789.9,2.00867052]
[1643735905175,0.1791,2790.7,2789.9,0.78249687]
[1643735905375,0.1791,2790.7,2789.9,1.0]
[1643735905826,0.1791,2790.7,2790.1,0.89609]
[1643735906023,0.52552277,2790.8,2790.1,0.89609]
[1643735906726,0.1791,2790.7,2790.1,0.89609]
[1643735906926,0.52552277,2790.8,2790.1,0.89609]
[1643735908128,0.1791,2790.7,2789.8,1.76238]
[1643735908328,0.1791,2790.7,2789.8,1.58328]
[1643735908547,0.1791,2790.7,2789.7,0.1791]
[1643735908548,1.52411813,2790.6,2789.7,0.1791]
[1643735908730,0.1792,2790.5,2789.1,1.07552]
[1643735908928,0.25,2790.3,2789.1,1.07552]
[1643735909132,0.25,2790.3,2789.4,0.74133196]
[1643735909133,0.1792,2790.2,2789.4,0.74133196]
[1643735909367,0.4792,2790.2,2789.1,1.07552]
[1643735910370,0.38632173,2789.4,2789.1,1.07552]
[1643735911170,0.25,2789.5,2789.1,1.07552]
[1643735912072,0.61418974,2789.5,2789.2,0.67123447]
[1643735912672,0.25,2789.5,2789.3,3.59943414]
[1643735912872,0.25,2789.5,2789.3,1.58328]
[1643735913318,0.25,2789.5,2789.3,2.58328]
[1643735913719,0.1792,2790.5,2789.4,2.03604091]
[1643735913920,0.1792,2790.5,2789.5,0.89621]
[1643735914118,1.1786,2790.7,2789.6,2.24342979]
[1643735914119,0.1792,2790.6,2789.6,2.24342979]
[1643735914320,0.1792,2790.6,2789.6,3.41022866]
[1643735914718,0.1792,2790.6,2789.6,4.99350866]
[1643735914919,0.40526208,2789.9,2789.6,5.88971866]
[1643735915122,0.1792,2790.7,2789.6,3.55869]
[1643735915321,1.51104537,2790.6,2789.7,0.94467075]
[1643735915520,0.1792,2790.5,2789.7,0.94467075]
[1643735915720,0.1792,2790.5,2789.6,0.79621]
[1643735915921,1.51106434,2790.4,2789.6,0.79621]
[1643735916320,1.81106434,2790.4,2789.6,2.81743641]
[1643735916522,0.39013324,2790.0,2789.6,2.81743641]
[1643735916781,0.39013324,2790.0,2789.5,0.6952]
[1643735916976,0.39013324,2790.0,2789.5,0.1792]
[1643735917172,0.39013324,2790.0,2789.4,0.1792]
[1643735917372,0.39013324,2790.0,2789.3,0.91168995]
[1643735919375,0.39013324,2790.0,2789.3,2.90859875]
[1643735919777,0.39013324,2790.0,2789.3,0.91168995]
[1643735920379,0.39013324,2790.0,2789.3,3.91974827]
[1643735920821,0.39013324,2790.0,2789.4,0.89625]
[1643735922421,0.39013324,2790.0,2789.5,1.98533333]
[1643735922721,0.39013324,2790.0,2789.4,0.89625]
[1643735924465,0.39013324,2790.0,2789.5,0.516]
[1643735925472,0.1792,2790.6,2789.5,0.516]
[1643735925671,1.51098684,2790.5,2789.6,1.58328]
[1643735925868,8.01429905,2791.1,2789.7,0.516]
[1643735925869,0.1792,2791.0,2789.7,0.516]
[1643735926069,1.51080824,2790.9,2789.7,0.516]
[1643735926468,1.51080824,2790.9,2790.1,1.06370728]
[1643735926671,1.51080824,2790.9,2790.2,2.31298654]
[1643735927068,0.1791,2791.2,2790.2,2.31298654]
[1643735927069,1.51080824,2790.8,2790.2,3.31298654]
[1643735927270,0.1791,2791.3,2790.2,3.49208654]
[1643735927473,0.1791,2791.3,2790.3,2.15177832]
[1643735927474,1.51067929,2791.2,2790.3,2.15177832]
[1643735927673,0.38092285,2790.9,2790.4,0.516]
[1643735927872,0.1791,2791.5,2790.6,0.8959]
[1643735928135,1.51064901,2791.4,2790.7,4.09928]
[1643735928529,0.67049905,2791.9,2790.8,1.0]
[1643735928530,1.51064901,2791.3,2790.8,1.0]
[1643735928732,0.1791,2791.8,2790.9,27.90819997]
[1643735928934,0.99277659,2792.1,2791.3,20.9]
[1643735929133,0.11659285,2792.3,2791.9,6.7]
[1643735929333,1.98844198,2792.5,2792.0,15.61167305]
[1643735929540,1.80934198,2792.7,2792.4,0.01204782]
[1643735929831,0.78188831,2792.7,2792.6,5.5]
[1643735930136,1.80934198,2792.9,2792.8,3.65]
[1643735930137,1.6684361,2792.9,2792.8,3.65]
[1643735930329,1.6684361,2792.9,2792.6,9.24406]
[1643735930330,1.43147299,2792.7,2792.6,9.24406]
[1643735930537,1.43147299,2792.7,2792.5,6.08328]
[1643735930731,1.43147299,2792.7,2792.6,4.716]
[1643735931331,1.43147299,2792.7,2792.6,5.53527072]
[1643735931534,1.43147299,2792.7,2792.6,2.71905521]
[1643735931784,1.43147299,2792.7,2792.6,0.516]
[1643735931987,1.43147299,2792.7,2792.6,1.516]
[1643735932793,1.43147299,2792.7,2792.6,4.74234627]
[1643735932991,1.43147299,2792.7,2792.6,5.63744627]
[1643735933190,0.51135207,2792.9,2792.7,6.7]
[1643735933390,0.51135207,2792.9,2792.8,8.54912987]
[1643735933588,0.51135207,2792.9,2792.8,15.51912987]
[1643735933788,0.51135207,2792.9,2792.8,17.30898987]
[1643735933990,0.13979587,2792.9,2792.8,38.20898987]
[1643735934191,0.13979587,2792.9,2792.8,39.79226987]
[1643735934793,0.13979587,2792.9,2792.8,40.09226987]
[1643735935195,0.08979587,2792.9,2792.8,37.97214]
[1643735935622,0.08979587,2792.9,2792.8,17.07214]
[1643735936226,0.08979587,2792.9,2792.8,11.82214]
[1643735936623,0.08979587,2792.9,2792.8,11.64314]